bitfinex/quotes_ETHUSD_20250404
["timestamp","ask_amount","ask_price","bid_price","bid_amount"]
[1743759137697,8.88938386,1823.9,1823.5,7.434531]
[1743759137904,8.88938386,1823.9,1823.5,6.2601]
[1743759138223,5.48309,1823.8,1823.5,6.2601]
[1743759139803,5.48309,1823.8,1823.5,11.74396]
[1743759139990,5.48309,1823.8,1823.5,6.2601]
[1743759140194,5.48309,1823.8,1823.5,11.74395]
[1743759140492,5.48155,1824.3,1824.2,268.77513614]
[1743759140705,5.88840688,1824.3,1824.2,268.77513614]
[1743759142611,8.88840688,1824.3,1824.2,268.77513614]
[1743759143394,9.03120688,1824.3,1824.2,268.77513614]
[1743759147917,3.54965688,1824.3,1824.2,268.77513614]
[1743759148116,3.0,1824.3,1824.2,270.08295725]
[1743759148917,5.89272649,1824.5,1824.2,270.08295725]
[1743759149317,8.48135,1824.4,1824.2,270.08295725]
[1743759149615,5.48155,1824.3,1824.2,270.08295725]
[1743759150120,5.48155,1824.3,1824.2,268.77513614]
[1743759150422,8.62435,1824.3,1824.2,268.77513614]
[1743759153692,8.62435,1824.3,1823.0,5.48535]
[1743759153693,5.48486,1823.2,1823.1,0.1]
[1743759154003,2.61299883,1823.1,1822.1,6.38779]
[1743759154204,5.48575,1823.0,1822.5,6.31347]
[1743759154415,0.1428,1823.1,1822.5,11.80026]
[1743759154615,3.0,1823.2,1822.8,5.48601]
[1743759154827,3.0,1823.2,1822.8,6.034421]
[1743759155028,0.1428,1823.4,1822.8,0.548601]
[1743759155329,0.55,1823.5,1823.0,6.25401]
[1743759155533,0.55,1823.5,1823.0,0.7686]
[1743759155852,0.42879823,1823.6,1823.5,5.48395]
[1743759155853,0.28599823,1823.6,1823.5,5.48395]
[1743759156934,0.28599823,1823.6,1823.4,6.26435]
[1743759157237,0.28599823,1823.6,1823.5,0.626435]
[1743759157847,0.28599823,1823.6,1823.2,5.4846]
[1743759157998,0.28599823,1823.6,1823.3,5.48452]
[1743759158924,0.28599823,1823.6,1823.2,6.23813]
[1743759159124,0.28599823,1823.6,1823.3,5.48435]
[1743759159634,0.28599823,1823.6,1823.2,6.23794]
[1743759159836,0.28599823,1823.6,1823.3,5.48427]
[1743759160040,0.4038044,1823.8,1823.4,5.48424]
[1743759160239,8.04448794,1824.0,1823.4,5.48424]
[1743759160659,8.04448794,1824.0,1823.3,5.48427]
[1743759160891,0.55,1823.9,1823.2,7.410328]
[1743759161008,0.55,1823.9,1823.3,11.7098728]
[1743759161009,1.40944879,1823.9,1823.3,11.7098728]
[1743759161209,1.40944879,1823.9,1823.4,5.48423]
[1743759161615,1.81668339,1823.9,1823.4,5.48423]
[1743759161829,1.81668339,1823.9,1823.3,6.2254828]
[1743759162140,1.81668339,1823.9,1823.5,5.48395]
[1743759162141,0.4072346,1823.9,1823.5,5.48395]
[1743759162356,8.04448794,1824.0,1823.5,5.48395]
[1743759162564,0.1428,1824.1,1823.3,0.7410328]
[1743759162710,0.1428,1824.1,1823.7,5.48324]
[1743759163111,5.18728794,1824.3,1823.7,5.48318]
[1743759163347,8.18728794,1824.3,1823.6,6.25021]
[1743759163561,3.0,1824.2,1823.6,11.73371]
[1743759164076,3.0,1824.2,1823.6,6.2501]
[1743759164272,0.3,1824.1,1823.6,6.2501]
[1743759164632,0.3,1824.1,1823.5,5.48395]
[1743759164871,0.3,1824.1,1823.6,5.48355]
[1743759165047,0.3,1824.1,1823.7,5.48334]
[1743759165350,0.3,1824.1,1823.7,10.96658]
[1743759165729,0.3,1824.1,1823.6,5.48365]
[1743759166078,0.3,1824.1,1823.6,5.48349]
[1743759167248,0.3,1824.1,1823.6,10.96697]
[1743759167449,0.3,1824.1,1823.7,5.48334]
[1743759168684,0.3,1824.1,1823.7,10.96652]
[1743759168890,0.3,1824.1,1823.7,5.48318]
[1743759170287,0.40312278,1824.2,1824.0,5.48245]
[1743759170467,5.86238794,1824.6,1824.0,5.48233]
[1743759170790,5.86238794,1824.6,1824.4,5.48116]
[1743759171002,0.58623879,1824.5,1824.1,5.48211]
[1743759171309,0.8179,1824.6,1824.0,5.48244]
[1743759171505,0.8179,1824.6,1823.9,5.48273]
[1743759171506,0.8179,1824.6,1823.9,10.96546]
[1743759171658,0.55,1824.5,1823.9,5.48273]
[1743759172006,0.8179,1824.4,1823.8,5.48299]
[1743759172661,0.8179,1824.4,1823.9,5.48262]
[1743759172862,0.8179,1824.4,1823.9,5.48259]
[1743759173106,1.25469,1824.4,1824.0,5.48239]
[1743759173400,1.25469,1824.4,1823.9,10.96524]
[1743759173601,1.25469,1824.4,1823.9,5.48259]
[1743759173803,3.0,1824.5,1824.0,5.48223]
[1743759174010,3.0,1824.5,1824.1,5.48215]
[1743759174162,3.0,1824.5,1824.2,5.48166]
[1743759174357,6.36376857,1824.6,1824.0,5.48236]
[1743759174585,6.36376857,1824.6,1824.1,0.548236]
[1743759174791,6.34246857,1824.6,1824.0,5.48236]
[1743759175005,3.0,1824.5,1824.0,5.48236]
[1743759175205,3.0,1824.5,1824.0,5.48231]
[1743759175808,3.0,1824.5,1824.0,10.96464]
[1743759175978,3.0,1824.5,1824.0,5.48231]
[1743759176305,0.3,1824.4,1824.0,5.48231]
[1743759177209,0.3,1824.4,1823.8,6.49511]
[1743759177409,0.9003,1824.3,1823.7,5.48324]
[1743759177573,0.9003,1824.3,1823.8,5.48295]
[1743759178358,0.9003,1824.3,1823.8,5.4829]
[1743759179466,0.9003,1824.3,1823.8,10.9658]
[1743759181129,0.9003,1824.3,1823.8,1.10206273]
[1743759181425,3.9003,1824.5,1824.2,5.48185]
[1743759181983,3.9003,1824.5,1824.1,5.48203]
[1743759182377,3.9003,1824.5,1824.0,1.0276]
[1743759182633,0.55,1824.4,1823.9,5.4826]
[1743759183180,0.55,1824.4,1823.7,5.48332]
[1743759183387,0.9003,1824.3,1823.7,5.48332]
[1743759183719,0.9003,1824.3,1823.7,5.48323]
[1743759184134,0.55,1824.2,1823.6,1.0543]
[1743759184422,3.55,1824.2,1823.6,5.48364]
[1743759184931,0.9003,1824.1,1823.5,5.48385]
[1743759185137,1.34533,1824.1,1823.5,5.48385]
[1743759185623,1.34533,1824.1,1823.5,10.9677]
[1743759185827,1.75868086,1824.1,1823.5,5.48385]
[1743759185985,0.55,1824.0,1823.4,6.5385]
[1743759186181,0.9003,1823.9,1823.3,5.48444]
[1743759186385,0.9003,1823.9,1823.3,5.4844]
[1743759186587,1.34533,1823.9,1823.3,5.4844]
[1743759186983,1.34533,1823.9,1823.4,10.96839]
[1743759187189,1.34533,1823.9,1823.4,5.48415]
[1743759187388,1.34533,1823.9,1823.4,10.96827]
[1743759187829,1.34533,1823.9,1823.4,5.48412]
[1743759188725,1.34533,1823.9,1823.4,5.48423]
[1743759189595,1.34533,1823.9,1823.4,5.4841]
[1743759189800,1.34533,1823.9,1823.6,5.48364]
[1743759190006,0.9003,1823.9,1823.6,5.48364]
[1743759190322,0.9003,1823.9,1823.6,5.48356]
[1743759190511,0.9003,1823.9,1823.5,5.4839]
[1743759191236,0.9003,1823.9,1823.5,5.4838]
[1743759191440,0.9003,1823.9,1823.6,5.48336]
[1743759191594,1.75868086,1824.1,1823.6,5.48336]
[1743759191798,1.75868086,1824.1,1823.7,5.48331]
[1743759192141,1.31365086,1824.1,1823.7,5.48331]
[1743759192839,1.31365086,1824.1,1823.8,5.48303]
[1743759193337,1.31365086,1824.1,1823.8,5.4829]
[1743759193634,5.59448794,1824.3,1823.8,5.4829]
[1743759193635,0.9003,1824.3,1823.8,1.0543]
[1743759193842,0.9003,1824.5,1824.2,5.48173]
[1743759194137,0.9003,1824.5,1824.1,5.48213]
[1743759194346,1.33009806,1824.5,1824.0,5.48239]
[1743759194639,1.33009806,1824.5,1823.8,6.53735]
[1743759194849,0.9003,1824.4,1823.8,1.0543]
[1743759195001,0.9003,1824.4,1824.0,5.4823]
[1743759195641,0.9003,1824.4,1824.0,5.48244]
[1743759196046,0.9003,1824.4,1824.0,10.96474]
[1743759196344,0.9003,1824.4,1824.1,5.48207]
[1743759196503,0.9003,1824.4,1824.1,5.48202]
[1743759196902,0.9003,1824.4,1824.1,10.96402]
[1743759197350,4.29778063,1824.6,1824.2,5.48181]
[1743759197551,1.29778063,1824.6,1824.2,5.48156]
[1743759198061,0.9001,1824.6,1824.2,10.96321]
[1743759198223,0.9001,1824.6,1824.2,5.48156]
[1743759198424,0.9001,1824.6,1824.1,6.5056]
[1743759198959,1.29011,1824.6,1824.0,10.96471]
[1743759199419,1.29011,1824.6,1824.0,5.48231]
[1743759199824,0.9001,1824.4,1823.7,18.13953617]
[1743759200026,0.55,1824.3,1823.7,5.48324]
[1743759200269,0.9001,1824.2,1823.7,5.48324]
[1743759200424,0.9001,1824.2,1823.6,10.9671]
[1743759201059,0.9001,1824.2,1823.6,12.2403401]
[1743759201246,0.9001,1824.2,1823.6,6.7567401]
[1743759201451,0.9001,1824.2,1823.5,5.48392]
[1743759201654,0.9001,1823.9,1823.4,10.96836]
[1743759201928,0.9001,1823.9,1823.5,10.96763]
[1743759202166,0.9001,1823.9,1823.3,6.46479]
[1743759202469,0.9001,1823.6,1823.1,5.48509]
[1743759202634,0.9001,1823.6,1822.9,6.52732]
[1743759202833,0.9001,1823.6,1822.9,5.48572]
[1743759203028,1.4501,1823.5,1822.9,5.48562]
[1743759203747,4.4501,1823.5,1822.8,5.48603]
[1743759204069,0.9001,1823.4,1822.7,5.48636]
[1743759204285,0.55,1823.3,1822.6,5.48656]
[1743759204566,0.55,1823.1,1822.4,5.48712]
[1743759204776,0.9001,1823.0,1822.4,5.48712]
[1743759205486,0.9001,1823.0,1822.5,5.48694]
[1743759205683,0.9001,1823.0,1822.6,5.48664]
[1743759205891,0.9001,1823.0,1822.8,5.48588]
[1743759206090,0.9001,1823.2,1823.0,5.48535]
[1743759206262,0.9001,1823.6,1823.0,5.48535]
[1743759206469,1.29011,1823.6,1822.9,5.48572]
[1743759206978,3.55,1823.5,1822.9,5.48572]
[1743759207158,0.9001,1823.4,1822.8,5.48602]
[1743759207563,0.9001,1823.4,1822.7,5.48634]
[1743759208609,3.0,1823.3,1822.7,5.48634]
[1743759208774,3.938436,1823.3,1822.7,5.48634]
[1743759209161,0.9001,1823.2,1822.7,5.48634]
[1743759209589,0.9001,1823.2,1822.7,10.97257]
[1743759209751,0.9001,1823.2,1822.8,5.48601]
[1743759209953,0.9001,1823.4,1823.0,5.48532]
[1743759210186,0.9001,1823.4,1823.1,0.548532]
[1743759210492,0.9001,1823.4,1822.9,1.0111]
[1743759210656,0.9001,1823.4,1823.1,5.48492]
[1743759210990,0.9001,1823.4,1823.0,5.4853]
[1743759212195,0.9001,1823.4,1823.1,5.48515]
[1743759212406,1.31284968,1823.6,1823.2,5.48483]
[1743759212613,0.9001,1823.6,1823.2,12.066514]
[1743759212904,0.9001,1823.6,1823.2,6.581684]
[1743759213630,0.9001,1823.6,1823.3,5.48442]
[1743759214599,0.9001,1823.6,1823.2,6.581834]
[1743759215606,0.9001,1823.6,1823.2,12.066534]
[1743759215801,0.9001,1823.6,1823.3,5.4845]
[1743759215962,0.9001,1823.6,1823.2,6.581694]
[1743759216461,0.9001,1823.6,1823.2,12.066414]
[1743759216997,0.9001,1823.6,1823.3,5.48433]
[1743759217224,0.9001,1823.6,1823.4,5.48424]
[1743759217380,3.55,1824.0,1823.3,0.6581324]
[1743759217381,0.9001,1823.9,1823.3,0.6581324]
[1743759217700,0.9001,1824.1,1824.0,5.48245]
[1743759217999,0.9001,1824.1,1823.9,5.48273]
[1743759218000,0.9001,1824.4,1824.3,5.48155]
[1743759218307,0.9001,1824.7,1824.4,5.48119]
[1743759218492,0.9001,1824.7,1824.3,5.48155]
[1743759218686,3.9001,1824.7,1824.3,5.48155]
[1743759218892,0.39001,1824.6,1824.3,5.48155]
[1743759219207,0.9001,1824.7,1824.3,5.48155]
[1743759219377,0.9001,1824.7,1824.2,5.48181]
[1743759219702,3.9001,1824.7,1824.2,5.48181]
[1743759220806,3.9001,1824.7,1824.3,5.48147]
[1743759221806,3.9001,1824.7,1824.2,5.48172]
[1743759221971,0.39001,1824.6,1824.2,10.96344]
[1743759222167,0.39001,1824.6,1824.3,5.4814]
[1743759222375,0.39001,1824.6,1824.3,10.96284]
[1743759222686,0.39001,1824.6,1824.3,5.4814]
[1743759223291,0.39001,1824.6,1824.2,10.96348]
[1743759223719,0.39001,1824.6,1824.2,10.96342]
[1743759223885,0.9001,1824.7,1824.2,5.48168]
[1743759224091,0.9001,1824.7,1824.2,10.96339]
[1743759225020,0.9001,1824.7,1824.3,5.48154]
[1743759225529,0.9001,1824.7,1824.2,10.96341]
[1743759225824,0.9001,1824.7,1824.2,5.48168]
[1743759226031,0.9001,1824.7,1824.3,5.48155]
[1743759226692,0.9001,1824.7,1824.3,10.96295]
[1743759226892,0.9001,1824.7,1824.3,5.4814]
[1743759227899,0.9001,1824.7,1824.3,10.96279]
[1743759228100,0.9001,1824.7,1824.4,5.48123]
[1743759228430,0.9001,1824.7,1824.2,10.96352]
[1743759228648,0.9001,1824.7,1824.2,12.059872]
[1743759228835,0.9001,1824.7,1824.3,5.48149]
[1743759229225,0.9001,1824.7,1824.3,5.48145]
[1743759229537,0.9001,1824.7,1824.4,5.48099]
[1743759232042,0.9001,1824.7,1824.3,5.4815]
[1743759232341,0.9001,1824.7,1824.3,10.96291]
[1743759232540,0.9001,1824.7,1824.3,10.96285]
[1743759235645,0.9001,1824.7,1824.4,5.48125]
[1743759236549,0.9001,1824.7,1824.4,10.9625]
[1743759236727,0.9001,1824.7,1824.4,6.57739]
[1743759236916,0.9001,1824.7,1824.4,12.0585]
[1743759237123,0.9001,1824.7,1824.4,6.57736]
[1743759237748,0.9001,1824.7,1824.4,5.48111]
[1743759238926,0.9001,1824.7,1824.3,12.0105]
[1743759239327,0.9001,1824.7,1824.3,12.01045]
[1743759239656,0.9001,1824.7,1824.3,5.48142]
[1743759240017,0.9001,1824.7,1824.4,5.48123]
[1743759240358,0.9001,1824.7,1824.3,10.96285]
[1743759240538,0.9001,1824.7,1824.3,5.48142]
[1743759240743,0.9001,1824.7,1824.3,5.48141]
[1743759240942,0.9001,1824.7,1824.4,5.48125]
[1743759241254,0.9001,1824.7,1824.3,10.96285]
[1743759241564,0.9001,1824.7,1824.3,5.48141]
[1743759242466,0.9001,1824.7,1824.2,5.48184]
[1743759242671,0.9001,1824.7,1824.2,10.96356]
[1743759243774,0.9001,1824.7,1824.3,5.48148]
[1743759243969,1.0,1824.9,1824.6,5.4806]
[1743759244172,1.0,1824.9,1824.6,5.48055]
[1743759244344,1.0,1824.9,1824.7,5.48025]
[1743759244944,1.0,1824.9,1824.6,10.96106]
[1743759245268,1.0,1824.9,1824.6,12.057166]
[1743759245772,1.0,1824.9,1824.6,1.096106]
[1743759245933,1.0,1824.9,1824.6,5.48056]
[1743759246132,1.0,1824.9,1824.7,5.48034]
[1743759246361,0.1,1824.9,1824.7,10.96054]
[1743759247070,0.1,1824.9,1824.8,5.48005]
[1743759247835,0.1,1824.9,1824.7,5.4802]
[1743759248035,0.1,1824.9,1824.7,6.576281]
[1743759248269,0.1,1824.9,1824.8,5.48005]
[1743759249548,0.1,1824.9,1824.8,6.52645]
[1743759250377,0.1,1824.9,1824.8,6.58123379]
[1743759250551,0.9,1825.7,1825.4,5.47806]
[1743759250882,0.9,1825.7,1825.4,10.95616]
[1743759251082,0.9,1825.7,1825.5,5.47794]
[1743759251448,0.9,1825.7,1825.3,5.47851]
[1743759251646,0.9,1825.7,1825.3,6.130911]
[1743759251864,0.9,1825.7,1825.4,5.47821]
[1743759252063,0.9,1825.7,1825.5,5.47793]
[1743759252987,1.42059991,1825.9,1825.5,5.47793]
[1743759253186,1.42059991,1825.9,1825.4,5.47821]
[1743759253355,1.42059991,1825.9,1825.4,6.0912711]
[1743759253958,1.42059991,1825.9,1825.4,6.0911911]
[1743759254251,1.42059991,1825.9,1825.5,5.47783]
[1743759254564,1.42059991,1825.9,1825.5,5.47795]
[1743759254565,1.0,1825.9,1825.5,5.47795]
[1743759254761,0.1,1825.9,1825.8,5.47705]
[1743759254976,0.1,1825.9,1825.8,6.25012401]
[1743759256791,0.1,1825.9,1825.8,0.77307401]
[1743759256995,0.1,1825.9,1825.8,5.47705]
[1743759258391,0.1,1825.9,1825.8,5.53181504]
[1743759258571,0.1,1825.9,1825.8,5.47705]
[1743759259105,0.1,1825.9,1825.6,5.47763]
[1743759259394,0.9987,1825.9,1825.6,10.95509]
[1743759259705,0.9987,1825.9,1825.6,5.47746]
[1743759260504,0.9987,1825.9,1825.7,5.47731]
[1743759260997,0.9987,1825.9,1825.6,5.47746]
[1743759261295,0.9987,1825.9,1825.3,5.47854]
[1743759261500,0.9987,1825.9,1825.2,5.47879]
[1743759261673,0.8987,1825.7,1825.2,5.47874]
[1743759261869,1.34357,1825.7,1825.1,5.47913]
[1743759262087,1.34357,1825.7,1825.1,10.95812]
[1743759262501,0.8987,1825.6,1825.2,5.47885]
[1743759262661,0.8987,1825.6,1825.2,5.4787]
[1743759262997,0.8987,1825.6,1825.3,5.47852]
[1743759263174,0.8987,1825.6,1825.0,5.47931]
[1743759263371,0.8987,1825.6,1825.1,5.47914]
[1743759263760,1.3170617,1825.6,1825.1,5.47914]
[1743759264703,0.8987,1825.5,1825.0,6.129301]
[1743759265710,0.8987,1825.5,1825.0,11.608581]
[1743759265902,0.8987,1825.5,1825.0,6.129271]
[1743759266288,0.8987,1825.5,1825.0,11.608561]
[1743759267422,0.8987,1825.5,1825.1,5.47912]
[1743759268123,0.8987,1825.5,1825.0,6.129271]
[1743759268333,0.8987,1825.5,1825.0,11.608601]
[1743759268620,0.40201837,1825.5,1825.0,11.608601]
[1743759268922,0.40201837,1825.5,1825.0,6.129271]
[1743759269090,0.40201837,1825.5,1825.0,6.129381]
[1743759269393,0.40201837,1825.5,1825.0,11.608671]
[1743759269916,0.40201837,1825.5,1825.1,6.6398371]
[1743759270125,0.40201837,1825.5,1825.1,1.1608671]
[1743759270288,3.55,1825.8,1825.3,5.47845]
[1743759270479,5.14448794,1825.9,1825.2,0.9796]
[1743759270679,10.62123794,1825.9,1825.2,5.47874]
[1743759270978,3.0,1825.8,1825.2,5.47874]
[1743759271208,3.0,1825.8,1825.3,5.47844]
[1743759271412,3.0,1825.8,1825.4,0.547844]
[1743759271615,0.502,1825.9,1825.5,5.47777]
[1743759271784,0.502,1825.9,1825.5,5.53272263]
[1743759271984,0.502,1825.9,1825.4,0.547844]
[1743759272186,0.502,1825.9,1825.6,5.47749]
[1743759272386,0.502,1825.9,1825.6,6.573034]
[1743759273117,0.502,1825.9,1825.7,5.47732]
[1743759273324,0.1,1825.9,1825.7,10.95451]
[1743759273481,0.1,1825.9,1825.7,10.95439]
[1743759273680,0.1,1825.9,1825.7,10.95443]
[1743759273896,0.1,1825.9,1825.8,0.83882811]
[1743759274820,0.1,1825.9,1825.8,6.31587811]
[1743759281450,0.1,1825.9,1825.8,6.37064226]
[1743759281614,0.1,1825.9,1825.8,6.31587811]
[1743759284852,0.1,1825.9,1825.8,6.37064225]
[1743759285014,0.1,1825.9,1825.8,6.31587811]
[1743759297582,0.1,1825.9,1825.6,10.95513]
[1743759297876,0.1,1825.9,1825.6,5.47755]
[1743759298242,0.1,1825.9,1825.6,10.95506]
[1743759299676,0.1,1825.9,1825.7,5.47733]
[1743759299877,0.4041,1825.8,1825.3,10.957]
[1743759300033,0.4041,1825.8,1825.3,10.95686]
[1743759300240,0.4041,1825.8,1825.3,5.47841]
[1743759300475,0.4041,1825.6,1825.1,5.47904]
[1743759300687,0.4041,1825.6,1825.1,10.95804]
[1743759301275,0.4041,1825.6,1825.1,5.479]
[1743759301479,0.69283437,1825.6,1825.1,5.479]
[1743759301771,0.69283437,1825.6,1825.1,10.95802]
[1743759301981,0.69283437,1825.6,1825.0,10.95855]
[1743759302279,0.69283437,1825.6,1825.0,5.47926]
[1743759302467,1.09450051,1825.6,1825.1,5.47898]
[1743759302676,1.09450051,1825.6,1825.1,10.95796]
[1743759302883,0.4041,1825.5,1825.2,5.47884]
[1743759303250,0.4041,1825.5,1825.1,0.05478612]
[1743759303590,0.4041,1825.6,1825.5,5.47791]
[1743759303812,0.4041,1825.8,1825.6,5.47753]
[1743759303955,0.4041,1825.8,1825.6,10.95507]
[1743759304151,0.4041,1825.8,1825.6,10.95506]
[1743759304347,0.1,1825.9,1825.7,5.47734]
[1743759304777,0.1,1825.9,1825.6,5.47762]
[1743759306101,0.1,1825.9,1825.6,10.95515]
[1743759306315,0.1,1825.9,1825.6,5.47753]
[1743759306798,0.1,1825.9,1825.6,5.47749]
[1743759306999,0.1,1825.9,1825.7,5.47715]
[1743759307197,0.1,1825.9,1825.8,5.47705]
[1743759307367,0.1,1825.9,1825.8,6.57247]
[1743759310487,0.1,1825.9,1825.8,6.57247]
[1743759310686,0.1,1825.9,1825.8,6.62723178]
[1743759311011,0.1,1825.9,1825.8,6.627232]
[1743759311416,0.1,1825.9,1825.8,6.57247]
[1743759312605,0.1,1825.9,1825.8,6.62723097]
[1743759312815,0.1,1825.9,1825.8,6.57247]
[1743759313873,0.1,1825.9,1825.8,10.16357213]
[1743759314077,0.1,1825.9,1825.8,10.10881374]
[1743759318726,0.1,1825.9,1825.8,10.1635688]
[1743759320741,0.1,1825.9,1825.8,10.10881374]
[1743759324688,0.4041,1826.5,1825.8,10.10881374]
[1743759324689,0.4041,1826.5,1826.4,5.47525]
[1743759324894,0.4045,1826.8,1826.5,5.47479]
[1743759325118,3.4045,1826.8,1826.5,10.94961]
[1743759325303,3.4045,1826.8,1826.5,5.47479]
[1743759325511,4.27705,1826.8,1826.5,5.47479]
[1743759326028,4.27705,1826.8,1826.5,5.47491]
[1743759326227,1.27705,1826.8,1826.5,5.47491]
[1743759326435,0.4045,1826.8,1826.5,5.47491]
[1743759328024,0.4045,1826.8,1826.5,5.47481]
[1743759328198,0.4045,1826.8,1826.5,10.94967]
[1743759328403,0.4045,1826.8,1826.5,5.47481]
[1743759329540,0.4045,1826.8,1826.5,5.47491]
[1743759330937,0.4045,1826.8,1826.5,10.94973]
[1743759331346,0.4045,1826.8,1826.6,5.47451]
[1743759331499,0.4045,1826.8,1826.7,5.47435]
[1743759334617,0.4045,1826.8,1826.6,10.94904]
[1743759335336,0.4045,1826.8,1826.6,10.94905]
[1743759336636,0.4045,1826.8,1826.6,5.47451]
[1743759337156,0.4045,1826.8,1826.6,10.94902]
[1743759337665,0.4045,1826.8,1826.7,5.47435]
[1743759338337,0.1,1826.9,1826.7,12.043586]
[1743759338657,0.1,1826.9,1826.7,6.569236]
[1743759338823,0.1,1826.9,1826.7,10.94859]
[1743759339255,0.1,1826.9,1826.8,5.47405]
[1743759355271,0.1,1826.9,1826.8,5.52878145]
[1743759355473,0.1,1826.9,1826.8,6.57348145]
[1743759355676,0.1,1826.9,1826.8,11.74948145]
[1743759355943,0.1,1826.9,1826.8,11.69475]
[1743759356982,0.1,1826.9,1826.8,17.84465617]
[1743759358259,0.3985,1827.6,1827.5,5.47195]
[1743759358471,0.3985,1827.6,1827.4,10.94434]
[1743759359159,0.3985,1827.6,1827.5,5.47195]
[1743759360082,0.0346,1827.7,1827.6,5.47165]
[1743759361689,0.1,1827.9,1827.8,6.49785]
[1743759366109,0.1,1827.9,1827.8,5.47105]
[1743759366821,0.4985,1827.9,1827.8,5.47105]
[1743759368816,0.4985,1827.9,1827.7,5.47122]
[1743759369189,0.4985,1827.9,1827.7,10.94241]
[1743759369391,0.4985,1827.9,1827.8,5.47105]
[1743759369603,0.4985,1827.9,1827.7,5.47119]
[1743759369810,0.4985,1827.9,1827.8,5.47105]
[1743759371018,0.4985,1827.9,1827.7,10.94244]
[1743759371331,0.4985,1827.9,1827.7,5.47119]
[1743759371531,0.4985,1827.9,1827.7,10.9424]
[1743759372483,0.4985,1827.9,1827.7,5.47119]
[1743759372916,0.4985,1827.9,1827.7,10.94239]
[1743759373615,0.4985,1827.9,1827.6,10.94318]
[1743759373825,0.4985,1827.9,1827.7,5.47132]
[1743759374245,0.4985,1827.9,1827.7,10.94256]
[1743759374738,0.4985,1827.9,1827.8,5.47105]
[1743759374739,0.1,1827.9,1827.8,5.47105]
[1743759378301,0.1,1827.9,1827.7,10.94248]
[1743759378908,0.1,1827.9,1827.8,5.47105]
[1743759380455,0.1,1827.9,1827.8,6.565277]
[1743759380660,0.1,1827.9,1827.8,7.648177]
[1743759381966,0.1,1827.9,1827.8,6.565277]
[1743759382268,0.1,1827.9,1827.8,5.47105]
[1743759385572,0.1,1827.9,1827.8,5.52575406]
[1743759386064,0.1,1827.9,1827.8,5.47105]
[1743759386852,0.1,1827.9,1827.8,6.47045]
[1743759387057,0.1,1827.9,1827.8,11.65645]
[1743759391184,0.1,1827.9,1827.8,14.13969374]
[1743759394203,0.55,1828.1,1828.0,5.47045]
[1743759394502,0.55,1828.1,1828.0,9.04248535]
[1743759394668,0.55,1828.1,1828.0,8.98779374]
[1743759396066,0.3985,1828.6,1828.5,5.46896]
[1743759396509,0.3985,1828.8,1828.6,5.46866]
[1743759397000,0.3985,1828.8,1828.6,5.46856]
[1743759399102,0.3985,1828.8,1828.6,10.93713]
[1743759399305,0.3985,1828.8,1828.6,5.46856]
[1743759400605,0.3985,1828.8,1828.5,5.46889]
[1743759400903,0.3985,1828.8,1828.5,10.93773]
[1743759401101,0.3985,1828.8,1828.6,5.46856]
[1743759404823,0.3985,1828.8,1828.5,10.93782]
[1743759406133,0.3985,1828.8,1828.5,5.46891]
[1743759406296,0.3985,1828.8,1828.5,10.93777]
[1743759408115,0.3985,1828.8,1828.6,5.46865]
[1743759409859,0.3985,1828.8,1828.6,10.93721]
[1743759410059,0.3985,1828.8,1828.6,10.93713]
[1743759410353,0.3985,1828.8,1828.6,5.46855]
[1743759411883,0.3985,1828.8,1828.3,5.46956]
[1743759412038,0.3985,1828.8,1828.6,5.46845]
[1743759413553,0.3985,1828.8,1828.7,5.46836]
[1743759413754,0.3985,1828.8,1828.6,5.46845]
[1743759414453,3.3985,1828.8,1828.6,5.46845]
[1743759414655,3.3985,1828.8,1828.5,10.93776]
[1743759415445,0.4019,1828.7,1828.5,10.93771]
[1743759415662,0.4019,1828.7,1828.6,5.46866]
[1743759418267,0.4019,1828.7,1828.5,5.46883]
[1743759418582,3.22533374,1828.7,1828.3,5.46942]
[1743759418877,3.22533374,1828.7,1828.4,5.46917]
[1743759421198,2.88514374,1828.7,1828.4,5.46917]
[1743759421367,2.88514374,1828.7,1828.4,5.46913]
[1743759422694,2.88514374,1828.7,1828.4,10.93826]
[1743759422914,2.88514374,1828.7,1828.4,10.93827]
[1743759423503,2.88514374,1828.7,1828.4,5.46913]
[1743759423796,2.88514374,1828.7,1828.4,10.93828]
[1743759424002,2.88514374,1828.7,1828.4,5.46913]
[1743759424326,2.88514374,1828.7,1828.4,10.93826]
[1743759425218,2.88514374,1828.7,1828.4,5.46913]
[1743759425418,2.88514374,1828.7,1828.4,10.93825]
[1743759426621,0.4019,1828.7,1828.5,5.46885]
[1743759427335,0.4019,1828.7,1828.6,5.46866]
[1743759427626,0.5019,1828.9,1828.4,5.46913]
[1743759427926,0.5019,1828.9,1828.6,5.46846]
[1743759428834,0.5019,1828.9,1828.6,10.93698]
[1743759429032,0.5019,1828.9,1828.7,5.46821]
[1743759429342,0.1,1828.9,1828.8,5.46806]
[1743759429626,0.1,1828.9,1828.8,6.50458374]
[1743759437368,0.1,1828.9,1828.8,5.46806]
[1743759441771,0.1,1828.9,1828.6,5.46854]
[1743759441982,3.4019,1828.8,1828.5,5.46885]
[1743759442540,3.4019,1828.8,1828.5,10.9377]
[1743759442740,3.4019,1828.8,1828.6,5.46856]
[1743759442939,3.0,1828.8,1828.7,5.46836]
[1743759443375,3.0,1828.8,1828.6,5.46856]